bitfinex/quotes_ETHUSD_20241223
["timestamp","ask_amount","ask_price","bid_price","bid_amount"]
[1734962870957,2.99437,3339.6,3338.8,1.24792563]
[1734962871154,3.79706,3339.5,3338.8,1.24792563]
[1734962871310,2.99456,3339.4,3338.8,1.24792563]
[1734962871515,2.99456,3339.4,3338.5,1.24792563]
[1734962871968,0.8026,3339.5,3338.5,1.24792563]
[1734962872172,0.8132,3340.5,3339.9,2.99402]
[1734962872370,2.83770556,3341.6,3340.0,0.02993981]
[1734962872580,0.8132,3341.3,3340.3,2.99371]
[1734962872750,0.8132,3341.3,3340.3,2.80777056]
[1734962872946,0.8132,3341.3,3340.5,2.99349]
[1734962873186,0.8132,3341.3,3339.9,2.9941]
[1734962873187,0.8132,3341.3,3340.1,3.0]
[1734962873344,0.8132,3341.3,3340.3,2.99369]
[1734962873533,0.8132,3341.3,3340.3,3.892453]
[1734962873885,0.8132,3341.3,3340.5,2.99356]
[1734962874054,0.8132,3341.3,3340.3,3.898763]
[1734962874279,0.792,3342.0,3340.4,0.0299326]
[1734962874580,0.792,3342.0,3341.1,2.80777056]
[1734962874779,0.792,3342.0,3341.1,2.993]
[1734962875095,0.792,3342.0,3340.8,3.0]
[1734962875096,0.792,3342.0,3340.7,2.80777056]
[1734962875296,2.99251,3341.7,3340.5,2.99352]
[1734962875502,0.792,3342.0,3340.7,1.24792563]
[1734962875664,0.792,3342.0,3340.9,2.99314]
[1734962876010,0.792,3342.0,3341.2,2.99286]
[1734962876514,0.792,3342.0,3340.9,2.99314]
[1734962876515,0.792,3342.0,3341.3,2.99277]
[1734962876871,0.793,3342.5,3341.4,0.02992587]
[1734962877087,0.793,3342.5,3341.6,2.9925]
[1734962877311,0.793,3342.5,3341.4,0.33220946]
[1734962877610,2.99106,3343.3,3342.2,2.99199]
[1734962877821,0.774,3343.5,3342.4,2.99181]
[1734962878111,0.774,3343.5,3341.8,3.0]
[1734962878112,2.99123,3343.1,3341.8,3.0]
[1734962878414,0.803935,3343.2,3341.6,2.99256]
[1734962878613,0.7731,3343.1,3341.7,5.99247]
[1734962878911,0.7731,3342.6,3341.6,4.24792563]
[1734962879068,0.7731,3342.6,3341.6,1.24792563]
[1734962879270,3.76481,3342.6,3341.6,1.24792563]
[1734962879483,4.141291,3342.6,3341.6,1.24792563]
[1734962879683,0.7731,3342.6,3341.7,2.99247]
[1734962880016,0.7731,3342.6,3341.4,0.30228359]
[1734962880314,0.7731,3342.6,3341.3,1.24792563]
[1734962880515,2.99187,3342.4,3341.3,4.24074563]
[1734962880683,2.99197,3342.3,3341.3,1.24792563]
[1734962880867,2.99197,3342.3,3341.2,4.24084563]
[1734962881067,2.99223,3342.0,3341.2,1.24792563]
[1734962881268,0.3813165,3342.0,3341.2,1.24792563]
[1734962881472,2.99221,3342.1,3341.2,1.24792563]
[1734962881891,0.791,3342.2,3341.1,0.02992879]
[1734962882273,0.791,3342.2,3341.2,2.99293]
[1734962882588,0.791,3342.2,3341.6,2.99253]
[1734962882789,0.791,3342.2,3340.8,3.0]
[1734962883113,0.791,3342.2,3341.2,2.99293]
[1734962883820,0.7534,3343.3,3341.7,3.05448329]
[1734962884116,0.7534,3343.3,3341.9,5.99225]
[1734962884414,0.7534,3343.3,3341.9,3.0]
[1734962884614,0.7534,3343.3,3342.0,8.98]
[1734962884813,0.7534,3343.3,3343.1,2.99121]
[1734962885025,2.98976,3344.8,3343.1,2.99121]
[1734962885026,0.8122,3343.8,3343.1,0.02990947]
[1734962885188,0.8122,3344.3,3343.3,3.0]
[1734962885386,3.80236,3344.3,3342.8,3.0]
[1734962885599,0.410171,3344.2,3342.8,2.99145]
[1734962885807,2.99025,3344.2,3343.0,2.99131]
[1734962886174,2.99045,3344.0,3342.8,4.23942563]
[1734962886401,3.80243,3344.3,3343.0,2.9913]
[1734962886616,0.8122,3344.3,3342.9,0.02991222]
[1734962886835,2.99025,3344.2,3343.1,2.99123]
[1734962887029,0.43941816,3344.1,3343.1,2.99123]
[1734962887411,3.42977816,3344.1,3342.9,2.9914]
[1734962887613,0.43941816,3344.1,3342.7,3.05448329]
[1734962887818,0.797,3343.6,3342.4,4.23977563]
[1734962887988,2.99089,3343.5,3342.5,2.99175]
[1734962888339,0.797,3343.6,3342.4,1.24792563]
[1734962888340,3.020975,3343.4,3342.4,1.24792563]
[1734962888641,2.99108,3343.3,3342.3,1.24792563]
[1734962888783,2.99132,3343.0,3342.3,1.24792563]
[1734962888988,3.80442,3342.9,3342.3,1.24792563]
[1734962889319,3.021515,3342.8,3342.3,1.24792563]
[1734962889513,0.813,3342.9,3342.3,1.24792563]
[1734962889738,0.813,3342.9,3342.3,0.41462563]
[1734962889935,3.77609,3341.8,3341.7,0.10871689]
[1734962890987,3.77609,3341.8,3340.6,2.99345]
[1734962891189,3.77609,3341.8,3340.7,2.99335]
[1734962891419,0.7837,3341.8,3340.8,0.8148302]
[1734962891625,0.7564,3342.7,3341.2,2.99285]
[1734962891826,2.99189,3342.4,3341.2,2.99285]
[1734962892129,0.299108,3343.2,3340.9,3.38693135]
[1734962892130,0.7807,3341.9,3340.9,3.38693135]
[1734962892286,0.7807,3341.9,3341.2,2.9929]
[1734962892485,0.7807,3341.9,3341.0,3.02302732]
[1734962892700,0.7807,3341.9,3341.1,0.71948587]
[1734962892901,0.7807,3341.9,3341.2,3.0]
[1734962893314,0.7807,3341.9,3341.0,6.02303732]
[1734962893487,0.7807,3341.9,3341.2,2.99292]
[1734962894119,0.7807,3341.9,3341.0,0.02992427]
[1734962894318,0.7807,3341.9,3341.1,0.42017556]
[1734962894498,0.7807,3341.9,3341.2,2.9929]
[1734962894920,3.80544,3342.6,3341.1,0.42017556]
[1734962895100,0.8137,3342.6,3341.1,0.42017556]
[1734962895302,0.029935,3342.5,3341.1,3.42017556]
[1734962895485,2.99264,3341.6,3340.7,1.86407407]
[1734962895991,2.99268,3341.5,3340.7,1.86407407]
[1734962896195,2.99284,3341.3,3340.7,1.86407407]
[1734962896491,0.029935,3341.4,3340.3,1.86407407]
[1734962896492,2.99303,3341.1,3340.3,1.86407407]
[1734962896693,0.8282,3340.9,3340.3,1.86407407]
[1734962897737,2.99346,3340.7,3340.3,1.86407407]
[1734962897937,3.82142,3340.9,3339.7,1.86407407]
[1734962898154,0.8282,3340.9,3339.9,2.99409]
[1734962898298,0.8282,3340.9,3339.7,1.86407407]
[1734962898500,0.8282,3340.9,3340.0,2.99399]
[1734962899806,3.82146,3340.9,3339.8,2.99419]
[1734962900132,0.8282,3340.9,3339.9,2.99401]
[1734962901539,3.82141,3340.9,3339.9,2.99401]
[1734962901763,0.029935,3340.8,3339.5,4.24428646]
[1734962901948,0.8282,3340.9,3339.5,7.23869646]
[1734962901949,2.99342,3340.7,3339.5,7.23869646]
[1734962902112,0.3851555,3340.6,3339.5,7.23869646]
[1734962902440,0.3851555,3340.6,3339.6,1.27422708]
[1734962902613,3.82144,3340.9,3339.9,2.99407]
[1734962902797,2.99329,3340.8,3339.6,1.24428646]
[1734962903017,0.7767,3340.6,3339.3,1.24428646]
[1734962903238,2.9939,3340.2,3339.3,1.24428646]
[1734962903450,0.7767,3339.9,3339.3,1.24428646]
[1734962903748,0.377074,3339.8,3339.3,1.24428646]
[1734962904468,0.377074,3339.8,3338.9,1.24428646]
[1734962904950,0.8298,3341.5,3339.7,0.7788]
[1734962905257,0.8298,3341.5,3340.7,2.99336]
[1734962905574,0.8298,3341.5,3340.9,2.9932]
[1734962905747,0.7674,3341.9,3340.7,0.7962]
[1734962905948,2.99258,3341.6,3340.6,2.99345]
[1734962906297,0.29368445,3341.8,3340.2,3.7962]
[1734962906499,0.7674,3341.9,3341.3,2.99276]
[1734962906699,0.7674,3341.9,3341.1,2.99299]
[1734962907139,0.7674,3341.9,3341.2,2.99288]
[1734962907525,0.7674,3341.9,3341.5,2.99266]
[1734962907726,0.7674,3341.9,3341.3,2.99282]
[1734962907943,0.7674,3341.9,3341.5,2.99266]
[1734962908145,0.7674,3341.9,3341.4,0.60772274]
[1734962908348,0.7674,3341.9,3341.6,2.99256]
[1734962908853,0.7674,3341.9,3341.4,3.60046274]
[1734962909142,0.7674,3341.9,3341.4,0.60772274]
[1734962909666,0.7674,3341.9,3341.2,2.99292]
[1734962909831,0.7674,3341.9,3340.8,2.04548646]
[1734962909832,0.7674,3341.9,3341.4,2.99273]
[1734962910162,0.7674,3341.9,3341.5,2.99264]
[1734962910364,0.7753,3342.6,3341.6,3.05448329]
[1734962910566,0.7753,3342.6,3342.1,2.99205]
[1734962910866,0.7753,3342.6,3341.6,3.87308329]
[1734962910867,0.7753,3342.6,3341.8,2.99238]
[1734962911017,0.7753,3342.6,3341.6,3.0]
[1734962911223,2.99187,3342.4,3341.3,2.99283]
[1734962911531,2.99187,3342.4,3341.4,2.99272]
[1734962911732,0.805235,3342.6,3341.3,1.28478733]
[1734962912064,0.7753,3342.6,3341.6,2.99255]
[1734962912264,0.7753,3342.6,3341.3,0.02992373]
[1734962912417,0.7753,3342.6,3341.6,3.84978329]
[1734962912621,0.7753,3342.6,3342.1,2.99212]
[1734962912818,0.8331,3343.4,3342.5,2.99177]
[1734962913023,1.2184995,3343.4,3342.1,6.04656329]
[1734962913230,0.8331,3343.4,3342.6,2.99166]
[1734962913578,0.8331,3343.4,3342.4,2.99183]
[1734962914532,0.8331,3343.4,3342.1,3.05448329]
[1734962914737,2.99122,3343.2,3342.0,2.99219]
[1734962914968,2.99122,3343.2,3341.7,1.24428646]
[1734962915137,3.373652,3343.2,3342.1,2.99211]
[1734962915774,0.382432,3343.2,3342.3,2.99192]
[1734962916982,0.382432,3343.2,3341.8,0.99581438]
[1734962917279,0.382432,3343.2,3342.3,2.99193]
[1734962917481,0.8331,3343.4,3342.6,2.99163]
[1734962917646,0.8284,3344.4,3343.5,2.99084]
[1734962917849,0.8284,3344.4,3343.2,0.02990816]
[1734962918065,0.8284,3344.4,3343.3,2.99105]
[1734962918381,0.8284,3344.4,3343.4,2.80547507]
[1734962918550,0.381839,3344.3,3343.4,2.80547507]
[1734962919179,0.8284,3344.4,3343.6,2.99076]
[1734962919416,0.8284,3344.4,3343.8,2.80547507]
[1734962919680,0.8284,3345.1,3344.3,5.79563507]
[1734962920151,0.8284,3345.1,3344.3,2.99016]
[1734962920677,0.8284,3345.1,3343.8,6.03935808]
[1734962920854,2.98962,3344.9,3343.7,2.99069]
[1734962921039,0.029935,3345.1,3343.5,1.24428646]
[1734962921378,0.8288,3345.0,3343.5,1.24428646]
[1734962921685,0.8288,3344.6,3343.7,3.0]
[1734962921867,2.9901,3344.4,3343.5,1.24428646]
[1734962922074,0.8047,3344.2,3343.3,3.0]
[1734962922231,0.029935,3344.1,3343.1,4.23550646]
[1734962922437,0.8047,3344.2,3343.1,4.23550646]
[1734962922680,0.8047,3344.2,3343.1,1.24428646]
[1734962922681,2.99047,3344.0,3343.1,1.24428646]
[1734962922864,0.8047,3343.7,3343.1,1.24428646]
[1734962923193,0.379539,3343.6,3343.1,1.24428646]
[1734962923368,0.8047,3343.7,3343.1,1.24428646]
[1734962923573,3.79547,3343.7,3343.1,1.24428646]
[1734962923771,3.79547,3343.7,3342.6,2.99167]
[1734962924088,2.99079,3343.6,3342.6,2.99167]
[1734962924499,0.8047,3343.7,3342.9,2.99139]
[1734962924823,0.8047,3343.7,3342.7,2.99157]
[1734962925483,1.184236,3343.7,3342.4,0.7665]
[1734962925810,2.99081,3343.6,3342.5,2.99176]
[1734962926018,2.99081,3343.6,3342.6,3.0]
[1734962926221,0.8047,3343.7,3343.3,2.99098]
[1734962926384,0.029935,3344.0,3342.8,3.04877808]
[1734962926385,0.8047,3344.0,3343.6,2.99078]
[1734962926587,0.8047,3344.0,3343.4,2.99094]
[1734962926788,0.8047,3344.0,3343.5,2.99087]
[1734962927113,0.8047,3344.0,3343.7,2.99068]
[1734962927316,0.8047,3344.9,3343.7,2.99068]
[1734962927676,0.8047,3344.9,3344.1,2.99033]
[1734962928213,0.8047,3344.9,3344.2,2.99024]
[1734962928919,0.8047,3344.9,3343.8,3.04877808]
[1734962929079,3.79434,3344.9,3343.9,2.99051]
[1734962929419,3.79434,3344.9,3343.8,3.04877808]
[1734962929420,1.2041116,3344.9,3343.8,3.04877808]
[1734962929629,0.8047,3344.9,3344.0,2.99037]
[1734962930472,0.029935,3344.8,3343.5,0.60396481]
[1734962930706,0.8047,3344.9,3343.4,3.0]
[1734962930707,3.019555,3344.9,3343.4,3.0]
[1734962930886,3.81071,3344.6,3343.5,2.99084]
[1734962931170,3.81071,3344.6,3343.4,3.0]
[1734962931369,3.81071,3344.6,3343.6,2.99077]
[1734962931621,2.99008,3344.4,3343.4,5.99093]
[1734962931775,0.381088,3344.4,3343.5,2.99086]
[1734962932119,0.8208,3344.6,3343.4,3.0]
[1734962932418,0.8208,3344.6,3343.5,0.02990337]
[1734962932627,0.8208,3344.6,3344.0,2.9904]
[1734962933179,0.8208,3344.6,3343.8,3.04877808]
[1734962933380,0.8208,3344.6,3344.1,2.99025]
[1734962933594,0.8208,3344.6,3344.2,2.99018]
[1734962934098,0.8208,3344.6,3344.2,3.289198]
[1734962934503,0.8208,3344.6,3344.3,2.99014]
[1734962934912,0.8208,3344.6,3344.2,0.299018]
[1734962935217,0.8208,3344.6,3344.1,2.99026]
[1734962935779,0.8208,3344.6,3343.9,2.99048]
[1734962935975,0.169841,3345.2,3344.0,0.02990086]
[1734962936206,0.169841,3345.2,3344.3,3.04877808]
[1734962936401,0.169841,3345.2,3344.5,2.98991]
[1734962936822,0.169841,3345.2,3344.3,6.03885808]
[1734962937036,3.3821061,3345.1,3344.3,3.04877808]
[1734962937336,0.3926261,3345.1,3344.3,6.03888808]
[1734962937504,0.169841,3345.2,3344.4,0.02989659]
[1734962937706,0.169841,3345.2,3344.3,3.04877808]
[1734962937910,0.199776,3345.2,3344.3,6.03890808]
[1734962938106,0.169841,3345.2,3344.3,6.03890808]
[1734962938311,0.5624641,3345.2,3344.3,6.03890808]
[1734962938517,0.5624641,3345.2,3344.3,3.04877808]
[1734962938840,0.169841,3345.2,3344.3,3.04877808]
[1734962939021,0.7985,3344.9,3343.9,3.0]
[1734962939335,0.7985,3344.9,3344.1,2.99028]
[1734962940044,0.7985,3344.9,3343.9,3.0]
[1734962940197,0.7985,3344.9,3344.0,2.99041]
[1734962940628,0.7985,3344.9,3343.8,3.04877808]
[1734962940827,0.7985,3344.9,3344.1,2.99033]
[1734962941454,0.169841,3345.2,3344.8,3.04877808]
[1734962941634,0.169841,3345.2,3345.1,5.98944]
[1734962941941,2.99228,3347.6,3345.1,5.98944]
[1734962941942,0.7657,3347.1,3345.3,2.98926]
[1734962942144,0.7657,3347.1,3346.2,2.98845]
[1734962942350,0.7657,3347.1,3346.0,3.04877808]
[1734962942351,0.7657,3347.1,3346.1,0.02988283]
[1734962942494,0.005,3347.6,3346.5,3.04877808]
[1734962942850,0.005,3347.6,3346.6,2.9881]
[1734962942997,0.005,3347.6,3346.5,3.04877808]
[1734962943194,0.005,3347.6,3347.1,3.04877808]
[1734962943438,0.005,3347.6,3347.5,2.9873]
[1734962943644,0.005,3347.6,3347.5,3.584787]
[1734962944895,0.005,3347.6,3347.5,2.9873]
[1734962946149,0.169841,3348.5,3347.6,3.04877808]
[1734962946325,0.169841,3348.5,3347.8,2.98695]
[1734962946498,0.169841,3348.5,3347.6,3.04877808]
[1734962946699,0.169841,3348.5,3347.7,0.60361581]
[1734962947166,0.7766,3348.8,3347.7,0.63348038]
[1734962947447,0.7766,3348.8,3348.1,3.04877808]
[1734962948146,3.76274,3348.8,3348.1,3.04877808]
[1734962948302,0.7766,3348.8,3348.1,3.04877808]
[1734962948640,2.9864,3348.6,3348.1,3.04877808]
[1734962948946,2.98625,3348.7,3348.1,3.04877808]
[1734962949127,3.362535,3348.7,3348.1,3.04877808]
[1734962950019,2.98678,3348.1,3347.6,3.04877808]
[1734962950438,2.98666,3348.3,3347.6,3.04877808]
[1734962950661,0.7766,3348.8,3347.8,2.98702]
[1734962950811,0.8053,3349.3,3348.6,3.04877808]
[1734962951551,2.98588,3349.1,3348.1,3.04877808]
[1734962951754,0.707617,3349.1,3348.1,3.04877808]
[1734962951908,0.835235,3349.3,3348.1,3.04877808]
[1734962952109,0.8053,3349.3,3348.7,3.04877808]
[1734962952357,2.98513,3350.0,3348.9,2.98604]
[1734962952559,2.98513,3350.0,3348.8,3.76492]
[1734962952709,2.98513,3350.0,3348.9,0.68136981]
[1734962953051,0.7929,3350.1,3348.9,3.66740981]
[1734962953356,0.7929,3350.1,3349.2,3.04877808]
[1734962953860,0.7929,3350.1,3348.7,3.04877808]
[1734962954350,0.7929,3350.1,3349.2,6.03454808]
[1734962954552,0.7929,3350.1,3349.3,0.63330488]
[1734962955050,0.7929,3350.1,3349.3,0.60345481]
[1734962955860,3.77792,3350.1,3349.2,3.04877808]
[1734962956024,0.7929,3350.1,3349.2,3.04877808]
[1734962956224,0.7929,3350.1,3349.3,0.8067]
[1734962956425,0.58893195,3351.1,3349.3,0.8067]
[1734962956426,2.98481,3350.3,3349.3,0.8067]
[1734962956624,0.7657,3350.4,3349.3,0.8067]
[1734962956843,0.7657,3350.4,3349.4,0.38554781]
[1734962957029,0.7657,3350.4,3349.4,0.41539734]
[1734962957241,0.7657,3350.4,3349.4,0.38554781]
[1734962957557,0.7657,3350.4,3349.3,0.8067]
[1734962957712,0.8272,3350.8,3349.7,3.04877808]
[1734962958059,2.9848,3350.4,3349.7,3.04877808]
[1734962958208,2.98467,3350.5,3349.7,3.04877808]
[1734962958412,3.81156,3350.8,3349.8,0.30487781]
[1734962958747,3.81156,3350.8,3349.7,3.04877808]
[1734962958748,0.8272,3350.8,3349.7,3.04877808]
[1734962958941,0.7902,3351.4,3350.2,3.04877808]
[1734962959164,0.029935,3351.3,3349.7,3.04877808]
[1734962959311,2.9851,3350.0,3349.7,3.04877808]
[1734962959513,2.9851,3350.0,3349.2,3.82607808]
[1734962959713,0.029935,3350.1,3349.2,3.04877808]
[1734962959941,2.98525,3349.8,3349.2,3.04877808]
[1734962960158,0.029935,3349.7,3348.8,0.7773]
[1734962960461,0.4104335,3350.1,3348.7,3.04877808]
[1734962960631,2.98507,3350.0,3348.7,3.04877808]
[1734962961043,2.98546,3349.6,3348.7,3.04877808]
[1734962961244,2.98546,3349.6,3348.7,3.35365589]
[1734962961449,3.015005,3350.0,3348.3,0.7586]
[1734962961753,0.7689,3349.4,3348.2,3.04877808]
[1734962961959,0.7689,3349.4,3348.3,2.98656]
[1734962962385,0.029935,3349.3,3347.9,0.8321]
[1734962962582,0.029935,3349.3,3347.7,6.03584808]
[1734962962583,2.98631,3348.7,3347.7,3.04877808]
[1734962962782,0.7892,3348.5,3347.1,0.7779]
[1734962962984,2.98698,3347.9,3347.1,0.7779]
[1734962963193,0.7892,3348.5,3347.2,3.04877808]
[1734962963394,0.7892,3348.5,3347.6,2.98721]
[1734962963683,0.8213,3348.9,3347.2,3.04877808]
[1734962963888,0.8213,3348.9,3347.3,0.38266781]
[1734962964088,2.98624,3348.7,3347.7,2.98712]
[1734962964457,0.8213,3348.9,3347.4,2.98736]
[1734962964652,2.98629,3348.7,3347.4,2.98738]
[1734962965157,2.98629,3348.7,3347.3,3.38266781]
[1734962965355,0.8213,3348.9,3347.4,0.72093459]
[1734962965589,0.8213,3348.9,3347.4,0.75079873]
[1734962965894,2.98675,3348.2,3347.4,0.72093459]
[1734962966039,0.7662,3348.1,3347.2,3.04877808]
[1734962966240,2.98691,3348.0,3347.1,0.7779]
[1734962966494,2.98695,3347.9,3347.1,0.7779]
[1734962966862,0.7662,3348.1,3347.1,0.7779]
[1734962967061,3.016495,3348.4,3347.1,0.7779]
[1734962967275,2.98705,3347.8,3347.1,0.376572]
[1734962967477,0.3016495,3348.3,3346.3,3.78843]
[1734962967478,2.98736,3347.5,3346.3,3.78843]
[1734962967790,0.029935,3347.4,3346.3,0.8001]
[1734962967997,0.029935,3347.9,3345.8,0.8001]
[1734962968141,0.029935,3347.9,3345.9,3.01861195]
[1734962968142,3.016885,3347.9,3345.9,3.01861195]
[1734962968347,2.98699,3347.9,3346.7,2.98793]
[1734962968789,2.98704,3347.8,3346.7,2.98793]
[1734962969384,2.98678,3348.1,3346.4,3.0]
[1734962969603,2.98694,3347.9,3346.3,0.8001]
[1734962969811,2.98777,3347.0,3346.0,0.686749]
[1734962970017,2.98777,3347.0,3346.1,0.4487569]
[1734962970159,0.8005,3347.1,3346.1,0.4487569]
[1734962970365,2.98792,3346.9,3346.0,0.686749]
[1734962970673,2.98775,3347.0,3346.0,0.686749]
[1734962971066,2.98784,3346.9,3346.0,0.686749]
[1734962971262,0.8005,3347.1,3345.3,0.7553]
[1734962971263,2.9884,3346.3,3345.3,0.7553]
[1734962971495,3.7614,3346.3,3345.3,0.7553]
[1734962971670,2.98847,3346.2,3345.3,0.7553]
[1734962971991,2.98865,3346.0,3345.3,0.7553]
[1734962972197,0.773,3346.3,3345.3,0.7553]
[1734962972198,3.76137,3346.3,3345.3,0.7553]
[1734962972367,3.76137,3346.3,3345.3,1.129766]
[1734962972973,0.773,3346.3,3345.3,1.129766]
[1734962973210,0.773,3346.3,3345.3,0.7553]
[1734962973415,0.029935,3346.2,3344.8,0.8054]
[1734962973625,2.98874,3345.9,3344.8,0.8054]
[1734962973822,2.98919,3345.4,3344.8,0.8054]
[1734962974117,0.7806,3345.4,3344.3,0.7777]
[1734962974303,2.98949,3345.1,3344.3,0.7777]
[1734962974484,2.9893,3345.3,3344.3,0.7777]
[1734962974822,2.98981,3344.7,3343.8,2.02198646]
[1734962974985,0.3799835,3345.3,3343.9,3.59444181]
[1734962975168,0.7806,3345.9,3344.7,3.04877808]
[1734962975370,3.04877808,3348.0,3345.4,2.98913]
[1734962975371,3.76879,3346.5,3345.4,2.98913]
[1734962975566,3.76879,3346.5,3345.2,0.7777]
[1734962975567,0.7806,3346.5,3345.2,0.7777]
[1734962976302,2.98828,3346.4,3345.3,3.01914998]
[1734962976624,2.98766,3347.1,3345.3,0.02988998]
[1734962976811,2.9881,3346.7,3345.5,2.98906]
[1734962976968,2.9881,3346.7,3345.5,3.01894382]
[1734962977283,2.98786,3346.9,3345.8,2.98881]
[1734962977488,2.98786,3346.9,3345.9,0.7897]
[1734962977690,0.7671,3347.2,3345.9,0.7897]
[1734962977691,2.9883,3346.4,3345.9,0.7897]
[1734962977894,0.029935,3347.1,3345.4,0.38563681]
[1734962978108,2.98856,3346.1,3345.3,0.7775]
[1734962978288,2.98903,3345.6,3344.8,0.7775]
[1734962978517,0.029935,3346.1,3344.8,0.7775]
[1734962978736,2.9892,3345.4,3344.8,0.7775]
[1734962978890,2.98935,3345.3,3344.8,0.7775]
[1734962979092,0.8308,3346.2,3344.8,0.7775]
[1734962979342,0.411843,3346.1,3344.8,0.7775]
[1734962979541,0.411843,3346.1,3344.2,4.29306454]
[1734962979542,0.411843,3346.1,3344.3,0.8142]
[1734962979706,0.7912,3345.9,3344.3,0.8142]
[1734962979890,2.98882,3345.8,3344.3,0.8142]
[1734962980092,0.029935,3345.7,3344.3,0.8142]
[1734962980345,2.98981,3344.7,3344.3,0.8142]
[1734962980699,2.98953,3345.0,3343.9,1.40215181]
[1734962980912,2.98953,3345.0,3343.9,0.60395181]
[1734962981106,2.98953,3345.0,3343.7,0.7982]
[1734962981510,0.029935,3345.1,3343.2,3.84697808]
[1734962981730,0.029935,3345.1,3342.8,2.04248646]
[1734962981731,2.99099,3343.4,3342.8,2.04248646]
[1734962981966,0.83,3344.0,3342.8,2.04248646]
[1734962982143,2.99073,3343.7,3342.8,2.04248646]
[1734962982474,0.83,3344.0,3342.9,0.39065605]
[1734962982647,2.99096,3343.5,3342.9,0.39065605]
[1734962982812,2.99096,3343.5,3342.8,0.7982]
[1734962983007,2.99052,3343.9,3342.8,0.7982]
[1734962983251,2.99116,3343.2,3342.5,1.24428646]
[1734962983757,2.99123,3343.1,3342.5,1.24428646]
[1734962983929,2.99123,3343.1,3342.4,0.8224]
[1734962984266,0.029935,3343.0,3342.4,0.8224]
[1734962984428,2.99132,3343.0,3342.4,0.8224]
[1734962984632,0.029935,3343.8,3342.4,0.8224]
[1734962984833,2.99143,3342.9,3342.4,0.8224]
[1734962985154,2.99151,3342.8,3342.4,0.8224]
[1734962985359,2.99094,3343.5,3341.8,0.8255]
[1734962985360,0.8123,3343.1,3341.8,0.8255]
[1734962985762,2.99173,3342.6,3341.8,0.8255]
[1734962985969,2.99186,3342.4,3341.8,0.8255]
[1734962986319,2.99196,3342.3,3341.8,0.8255]
[1734962986657,2.99167,3342.7,3341.8,0.8255]
[1734962986861,2.99215,3342.1,3341.3,0.8206]
[1734962987030,2.99228,3342.0,3341.3,0.8206]
[1734962987229,2.99214,3342.1,3341.3,0.8206]
[1734962987448,3.022185,3342.0,3341.3,0.8206]
[1734962987835,0.7881,3342.3,3341.1,0.46764253]
[1734962988035,0.7952,3342.8,3341.2,0.43833293]
[1734962988261,2.99179,3342.5,3341.5,0.7771]
[1734962988487,2.992,3342.3,3341.5,0.7771]
[1734962988664,0.029935,3342.6,3341.5,0.7771]
[1734962988870,2.99232,3341.9,3341.1,0.46764253]
[1734962989167,2.99244,3341.8,3341.2,0.01018968]
[1734962989366,2.99159,3342.7,3341.2,0.01018968]
[1734962989584,2.99213,3342.1,3341.2,0.01018968]
[1734962989735,0.816535,3342.0,3341.2,0.01018968]
[1734962990074,0.7866,3343.1,3341.2,0.02992833]
[1734962990271,2.99143,3342.9,3341.7,2.99247]
[1734962990893,2.99153,3342.8,3341.5,2.99265]
[1734962991868,0.029935,3343.0,3341.5,2.99265]
[1734962992037,0.029935,3343.0,3341.6,2.99254]
[1734962992038,2.99154,3342.8,3341.6,2.99254]
[1734962992462,2.99162,3342.7,3341.5,2.99266]
[1734962992663,2.99162,3342.7,3341.6,0.48258981]
[1734962993050,2.99169,3342.6,3341.6,0.48258981]
[1734962993808,2.99186,3342.4,3341.4,1.03113806]
[1734962993944,2.99186,3342.4,3341.3,3.79493]
[1734962994575,3.021915,3342.3,3341.3,0.8021]
[1734962994885,2.99198,3342.3,3341.3,0.8021]
[1734962995391,0.029935,3342.2,3340.4,0.8037]
[1734962995700,0.029935,3342.2,3340.5,0.73148551]
[1734962996018,2.99315,3341.0,3340.4,0.8037]
[1734962996291,2.99255,3341.7,3340.4,0.8037]
[1734962996498,0.029935,3341.6,3340.4,0.8037]
[1734962996671,2.99233,3341.9,3340.7,2.99333]
[1734962996875,0.788435,3342.1,3340.8,0.30232638]
[1734962997044,2.99186,3342.4,3341.2,0.7721]
[1734962997245,2.99212,3342.2,3341.2,0.7721]
[1734962997467,3.022085,3342.1,3341.2,0.7721]
[1734962997669,2.99215,3342.1,3341.2,0.7721]
[1734962998153,0.029935,3342.4,3341.2,0.7721]
[1734962998403,0.7896,3342.5,3341.2,3.76501]
[1734962998561,2.99181,3342.5,3341.3,0.376501]
[1734962998893,2.99187,3342.4,3341.3,0.376501]
[1734962999092,3.021625,3342.6,3341.3,0.376501]
[1734962999244,3.021785,3342.5,3341.3,0.376501]
[1734962999445,2.99186,3342.4,3341.2,0.7721]
[1734962999817,0.029935,3342.3,3341.2,0.7721]
[1734963000089,2.99208,3342.2,3341.2,0.7721]
[1734963000389,0.029935,3342.1,3341.2,0.7721]
[1734963000607,0.029935,3342.1,3340.8,0.8065]
[1734963000608,0.7876,3342.0,3340.8,0.8065]
[1734963000771,0.7876,3342.4,3340.9,0.02992671]
[1734963000975,0.7876,3342.4,3340.8,3.79973]
[1734963000976,2.99214,3342.1,3341.0,3.37604567]
[1734963001270,1.165523,3342.4,3341.0,0.38296567]
[1734963001479,0.7876,3342.4,3341.5,0.779]
[1734963001707,0.7644,3342.8,3341.8,2.99235]
[1734963001993,0.7644,3342.8,3341.5,0.779]
[1734963002364,0.7644,3342.8,3341.0,0.38296567]
[1734963002365,0.029935,3342.7,3341.0,0.38296567]
[1734963002565,2.99223,3342.0,3341.1,0.7597]
[1734963002748,0.7636,3341.9,3340.7,0.7597]
[1734963002945,0.7636,3341.9,3340.7,3.753]
[1734963002946,0.029935,3341.8,3340.7,3.753]
[1734963003146,0.7636,3341.9,3340.7,0.7597]